[Event "*** Titled Tuesday 3|2 Blitz"]
[Site "Chess.com"]
[Date "2015.11.03"]
[Round "5"]
[White "Dlugy"]
[Black "Boryboy"]
[Result "1/2-1/2"]
[WhiteElo "2561"]
[BlackElo "2469"]
[TimeControl "180+2"]
[EndTime "12:03:23 PST"]
[Termination "Game drawn by stalemate"]

1. d4 {[%clk 0:03:01.9]} 1... e6 {[%clk 0:03:00.9]} 2. Bf4 {[%clk 0:03:02.8]}
2... d5 {[%clk 0:02:58.5]} 3. e3 {[%clk 0:03:03.8]} 3... Nf6 {[%clk 0:02:59.3]}
4. c4 {[%clk 0:03:04.5]} 4... Nbd7 {[%clk 0:02:58.6]} 5. Nc3 {[%clk 0:03:05.4]}
5... a6 {[%clk 0:02:45.1]} 6. Rc1 {[%clk 0:02:49.9]} 6... dxc4 {[%clk
0:02:42.4]} 7. Bxc4 {[%clk 0:02:50.7]} 7... b5 {[%clk 0:02:42.4]} 8. Be2 {[%clk
0:02:52.3]} 8... Bb7 {[%clk 0:02:42.5]} 9. Bf3 {[%clk 0:02:53.5]} 9... Bxf3
{[%clk 0:02:33.2]} 10. Qxf3 {[%clk 0:02:51.9]} 10... Bd6 {[%clk 0:02:34.4]} 11.
Nge2 {[%clk 0:02:47.5]} 11... O-O {[%clk 0:02:34.8]} 12. O-O {[%clk 0:02:46.5]}
12... Nb6 {[%clk 0:02:29.6]} 13. Qc6 {[%clk 0:02:44.3]} 13... Qd7 {[%clk
0:02:24.4]} 14. Qxd7 {[%clk 0:02:34.5]} 14... Nbxd7 {[%clk 0:02:17.7]} 15. a3
{[%clk 0:02:18]} 15... Rfc8 {[%clk 0:02:17.8]} 16. b4 {[%clk 0:02:18.5]} 16...
Nb6 {[%clk 0:02:15]} 17. Rc2 {[%clk 0:02:11.6]} 17... Nc4 {[%clk 0:02:14.5]} 18.
Ra1 {[%clk 0:02:12]} 18... Be7 {[%clk 0:02:11]} 19. Nc1 {[%clk 0:02:01.2]} 19...
c6 {[%clk 0:01:51.9]} 20. Nb3 {[%clk 0:01:41.2]} 20... a5 {[%clk 0:01:46.2]} 21.
bxa5 {[%clk 0:01:38.7]} 21... Nxa5 {[%clk 0:01:36.4]} 22. Nd2 {[%clk 0:01:39.8]}
22... Nd5 {[%clk 0:01:29.2]} 23. Bg3 {[%clk 0:01:26.3]} 23... Nb6 {[%clk
0:01:09.1]} 24. Kf1 {[%clk 0:01:08.2]} 24... Nac4 {[%clk 0:01:03.1]} 25. Nxc4
{[%clk 0:01:09.2]} 25... Nxc4 {[%clk 0:01:04.1]} 26. a4 {[%clk 0:01:10.7]} 26...
Bb4 {[%clk 0:00:58.3]} 27. Ke2 {[%clk 0:01:05.9]} 27... Nb6 {[%clk 0:00:57.7]}
28. Rac1 {[%clk 0:00:57.5]} 28... bxa4 {[%clk 0:00:50.7]} 29. Na2 {[%clk
0:00:58.1]} 29... Bf8 {[%clk 0:00:40.8]} 30. Rxc6 {[%clk 0:00:58.8]} 30... Rxc6
{[%clk 0:00:42.4]} 31. Rxc6 {[%clk 0:00:59.7]} 31... Nd5 {[%clk 0:00:44]} 32.
Bd6 {[%clk 0:00:56.8]} 32... Bxd6 {[%clk 0:00:42.6]} 33. Rxd6 {[%clk 0:00:57.8]}
33... Rb8 {[%clk 0:00:41.6]} 34. Ra6 {[%clk 0:00:58.3]} 34... Rb2+ {[%clk
0:00:17.4]} 35. Kf3 {[%clk 0:00:58.8]} 35... f5 {[%clk 0:00:17.3]} 36. Rxa4
{[%clk 0:00:59.5]} 36... Nf6 {[%clk 0:00:18.6]} 37. Nb4 {[%clk 0:00:39.8]} 37...
Ng4 {[%clk 0:00:17]} 38. Nd3 {[%clk 0:00:40.6]} 38... Rd2 {[%clk 0:00:18.1]} 39.
Ra8+ {[%clk 0:00:31.4]} 39... Kf7 {[%clk 0:00:18.8]} 40. Ne5+ {[%clk 0:00:33.3]}
40... Nxe5+ {[%clk 0:00:19]} 41. dxe5 {[%clk 0:00:35.2]} 41... Rd7 {[%clk
0:00:18.8]} 42. h4 {[%clk 0:00:34.5]} 42... g6 {[%clk 0:00:18]} 43. Kf4 {[%clk
0:00:35.3]} 43... h6 {[%clk 0:00:18.3]} 44. g4 {[%clk 0:00:33.8]} 44... Rb7
{[%clk 0:00:18.1]} 45. gxf5 {[%clk 0:00:33.4]} 45... gxf5 {[%clk 0:00:18.5]} 46.
Ra4 {[%clk 0:00:33.2]} 46... Kg6 {[%clk 0:00:18.7]} 47. f3 {[%clk 0:00:31.4]}
47... Rc7 {[%clk 0:00:19.7]} 48. e4 {[%clk 0:00:22.6]} 48... Rf7 {[%clk
0:00:20.4]} 49. exf5+ {[%clk 0:00:20.6]} 49... Rxf5+ {[%clk 0:00:21.4]} 50. Ke4
{[%clk 0:00:22.5]} 50... Rh5 {[%clk 0:00:22.7]} 51. Ra6 {[%clk 0:00:21.9]} 51...
Rxh4+ {[%clk 0:00:18.6]} 52. f4 {[%clk 0:00:23.2]} 52... Kf7 {[%clk 0:00:18.7]}
53. Ra7+ {[%clk 0:00:23.7]} 53... Kf8 {[%clk 0:00:19.5]} 54. Rh7 {[%clk
0:00:23.8]} 54... Rh1 {[%clk 0:00:20.2]} 55. Kd4 {[%clk 0:00:24.9]} 55... Rd1+
{[%clk 0:00:21.1]} 56. Kc5 {[%clk 0:00:25.8]} 56... Rf1 {[%clk 0:00:20.2]} 57.
Kd6 {[%clk 0:00:26.4]} 57... Rxf4 {[%clk 0:00:20.3]} 58. Kxe6 {[%clk 0:00:28]}
58... Rh4 {[%clk 0:00:10.8]} 59. Kf6 {[%clk 0:00:26.6]} 59... Kg8 {[%clk
0:00:11.1]} 60. Rg7+ {[%clk 0:00:27.3]} 60... Kf8 {[%clk 0:00:11.6]} 61. Ra7
{[%clk 0:00:27.9]} 61... Rf4+ {[%clk 0:00:12.7]} 62. Ke6 {[%clk 0:00:28.6]}
62... h5 {[%clk 0:00:13.3]} 63. Rh7 {[%clk 0:00:25.9]} 63... h4 {[%clk
0:00:14.2]} 64. Kd6 {[%clk 0:00:25.1]} 64... Rd4+ {[%clk 0:00:15.4]} 65. Kc5
{[%clk 0:00:26.3]} 65... Rg4 {[%clk 0:00:14.7]} 66. Kd5 {[%clk 0:00:27.3]} 66...
Rg6 {[%clk 0:00:13.6]} 67. Rxh4 {[%clk 0:00:25.9]} 67... Ke8 {[%clk 0:00:14.6]}
68. Rf4 {[%clk 0:00:26.2]} 68... Rh6 {[%clk 0:00:15.3]} 69. Ra4 {[%clk
0:00:24.1]} 69... Rg6 {[%clk 0:00:16.5]} 70. Ra7 {[%clk 0:00:24.6]} 70... Rh6
{[%clk 0:00:17.5]} 71. Rc7 {[%clk 0:00:25.4]} 71... Rg6 {[%clk 0:00:18.8]} 72.
Rc8+ {[%clk 0:00:25]} 72... Kd7 {[%clk 0:00:18.4]} 73. Rf8 {[%clk 0:00:26.2]}
73... Ke7 {[%clk 0:00:19.6]} 74. Rf4 {[%clk 0:00:26.9]} 74... Ke8 {[%clk
0:00:20.3]} 75. Ke4 {[%clk 0:00:27.6]} 75... Rh6 {[%clk 0:00:21.3]} 76. Kf5
{[%clk 0:00:28.7]} 76... Ra6 {[%clk 0:00:22.3]} 77. Rh4 {[%clk 0:00:29.4]} 77...
Rb6 {[%clk 0:00:23.5]} 78. Rh7 {[%clk 0:00:29.3]} 78... Ra6 {[%clk 0:00:24.8]}
79. Rh8+ {[%clk 0:00:30.5]} 79... Ke7 {[%clk 0:00:26]} 80. Rb8 {[%clk
0:00:32.4]} 80... Rc6 {[%clk 0:00:26.4]} 81. Rb7+ {[%clk 0:00:34.3]} 81... Ke8
{[%clk 0:00:27.7]} 82. Ke4 {[%clk 0:00:35.1]} 82... Ra6 {[%clk 0:00:28.4]} 83.
Kd5 {[%clk 0:00:36.6]} 83... Rh6 {[%clk 0:00:29.6]} 84. e6 {[%clk 0:00:37.7]}
84... Rh1 {[%clk 0:00:30.5]} 85. Rb8+ {[%clk 0:00:37.8]} 85... Ke7 {[%clk
0:00:31.7]} 86. Rb7+ {[%clk 0:00:39.7]} 86... Ke8 {[%clk 0:00:33.3]} 87. Rb4
{[%clk 0:00:40.7]} 87... Rd1+ {[%clk 0:00:34]} 88. Ke5 {[%clk 0:00:42.1]} 88...
Re1+ {[%clk 0:00:35.4]} 89. Re4 {[%clk 0:00:43.7]} 89... Rxe4+ {[%clk
0:00:36.6]} 90. Kxe4 {[%clk 0:00:45.2]} 90... Ke7 {[%clk 0:00:38.3]} 91. Ke5
{[%clk 0:00:46.9]} 91... Ke8 {[%clk 0:00:39.9]} 92. Kf6 {[%clk 0:00:48.8]} 92...
Kf8 {[%clk 0:00:41.6]} 93. e7+ {[%clk 0:00:50.7]} 93... Ke8 {[%clk 0:00:43.3]}
94. Ke6 {[%clk 0:00:52.6]} 1/2-1/2

[Event "*** Titled Tuesday 3|2 Blitz"]
[Site "Chess.com"]
[Date "2015.11.03"]
[Round "6"]
[White "E-Shaposhnikov"]
[Black "SerGo055"]
[Result "1-0"]
[WhiteElo "2565"]
[BlackElo "2392"]
[TimeControl "180+2"]
[EndTime "12:12:59 PST"]
[Termination "E-Shaposhnikov won by resignation"]

1. Nf3 {[%clk 0:02:59]} 1... Nf6 {[%clk 0:03:00.4]} 2. c4 {[%clk 0:02:58.8]}
2... c6 {[%clk 0:02:59]} 3. d4 {[%clk 0:02:59.1]} 3... d5 {[%clk 0:02:59.9]} 4.
e3 {[%clk 0:03:01]} 4... e6 {[%clk 0:02:58.9]} 5. Nbd2 {[%clk 0:03:01.9]} 5...
Nbd7 {[%clk 0:03:00]} 6. b3 {[%clk 0:03:02.8]} 6... Be7 {[%clk 0:02:49.3]} 7.
Bb2 {[%clk 0:03:03.3]} 7... O-O {[%clk 0:02:50.8]} 8. Bd3 {[%clk 0:03:03.7]}
8... b6 {[%clk 0:02:52.1]} 9. O-O {[%clk 0:03:03.5]} 9... Bb7 {[%clk 0:02:53]}
10. Qe2 {[%clk 0:03:04.6]} 10... c5 {[%clk 0:02:53.6]} 11. Ne5 {[%clk
0:03:03.6]} 11... Rc8 {[%clk 0:02:53.2]} 12. f4 {[%clk 0:03:03.5]} 12... Ne4
{[%clk 0:02:34.4]} 13. cxd5 {[%clk 0:02:59.1]} 13... exd5 {[%clk 0:02:31.8]} 14.
Nxe4 {[%clk 0:02:59.9]} 14... dxe4 {[%clk 0:02:32.7]} 15. Bc4 {[%clk 0:03:00.6]}
15... cxd4 {[%clk 0:02:32]} 16. Bxd4 {[%clk 0:03:02.2]} 16... Nxe5 {[%clk
0:02:31.9]} 17. Bxe5 {[%clk 0:02:59.5]} 17... Bd5 {[%clk 0:02:16.6]} 18. Rad1
{[%clk 0:02:56.8]} 18... Bxc4 {[%clk 0:02:17.2]} 19. Qg4 {[%clk 0:02:55.7]}
19... f6 {[%clk 0:02:07.6]} 20. Rxd8 {[%clk 0:02:53.1]} 20... Rfxd8 {[%clk
0:01:45.8]} 21. bxc4 {[%clk 0:02:52.9]} 21... fxe5 {[%clk 0:01:31.3]} 22. Qe6+
{[%clk 0:02:52]} 22... Kf8 {[%clk 0:01:30.9]} 23. fxe5+ {[%clk 0:02:52.8]} 23...
Ke8 {[%clk 0:01:31.8]} 24. Qf7+ {[%clk 0:02:40.9]} 24... Kd7 {[%clk 0:01:32.8]}
25. Rd1+ {[%clk 0:02:42.5]} 25... Kc6 {[%clk 0:01:32.1]} 26. Qe6+ {[%clk
0:02:42.2]} 1-0

[Event "*** Titled Tuesday 3|2 Blitz"]
[Site "Chess.com"]
[Date "2015.11.03"]
[Round "6"]
[White "GeorgMeier"]
[Black "Viaje"]
[Result "1-0"]
[WhiteElo "2613"]
[BlackElo "2253"]
[TimeControl "180+2"]
[EndTime "12:13:16 PST"]
[Termination "GeorgMeier won by resignation"]

1. Nf3 {[%clk 0:03:01.9]} 1... c5 {[%clk 0:03:00.8]} 2. c4 {[%clk 0:03:00.8]}
2... Nc6 {[%clk 0:03:02.1]} 3. Nc3 {[%clk 0:03:01.7]} 3... e5 {[%clk 0:03:02.8]}
4. e3 {[%clk 0:03:02.6]} 4... Nf6 {[%clk 0:03:03.6]} 5. d4 {[%clk 0:03:03.7]}
5... e4 {[%clk 0:03:04.7]} 6. Ne5 {[%clk 0:03:04.7]} 6... h5 {[%clk 0:03:04.3]}
7. Be2 {[%clk 0:02:59.5]} 7... Bd6 {[%clk 0:03:04.3]} 8. Nxc6 {[%clk 0:02:52.1]}
8... dxc6 {[%clk 0:03:03.2]} 9. dxc5 {[%clk 0:02:53.5]} 9... Bxc5 {[%clk
0:03:01.9]} 10. Qxd8+ {[%clk 0:02:54.1]} 10... Kxd8 {[%clk 0:03:03.8]} 11. b3
{[%clk 0:02:55.1]} 11... Ke7 {[%clk 0:03:00.9]} 12. Bb2 {[%clk 0:02:55.8]} 12...
Bf5 {[%clk 0:03:00.5]} 13. O-O-O {[%clk 0:02:42.9]} 13... Rhd8 {[%clk
0:02:59.2]} 14. h3 {[%clk 0:02:41.8]} 14... h4 {[%clk 0:02:56]} 15. Kc2 {[%clk
0:02:32.1]} 15... Ke6 {[%clk 0:02:52.6]} 16. a3 {[%clk 0:02:17.7]} 16... Be7
{[%clk 0:02:46.8]} 17. b4 {[%clk 0:02:14.2]} 17... a5 {[%clk 0:02:46.5]} 18. c5
{[%clk 0:02:13.5]} 18... axb4 {[%clk 0:02:40.5]} 19. axb4 {[%clk 0:02:10.1]}
19... b6 {[%clk 0:02:32.2]} 20. Bc4+ {[%clk 0:02:08]} 20... Nd5 {[%clk
0:02:32.5]} 21. b5 {[%clk 0:02:04.4]} 21... cxb5 {[%clk 0:01:37.7]} 22. Bxd5+
{[%clk 0:02:04]} 22... Rxd5 {[%clk 0:01:37.5]} 23. Nxd5 {[%clk 0:02:03]} 1-0

[Event "*** Titled Tuesday 3|2 Blitz"]
[Site "Chess.com"]
[Date "2015.11.03"]
[Round "6"]
[White "1random"]
[Black "stefanodinn"]
[Result "1-0"]
[WhiteElo "1943"]
[BlackElo "2134"]
[TimeControl "180+2"]
[EndTime "12:14:13 PST"]
[Termination "1random won by resignation"]

1. e4 {[%clk 0:03:01.9]} 1... c5 {[%clk 0:02:59.7]} 2. Nf3 {[%clk 0:03:02.7]}
2... d6 {[%clk 0:02:56.9]} 3. d4 {[%clk 0:03:03.6]} 3... cxd4 {[%clk 0:02:57]}
4. Nxd4 {[%clk 0:03:05.5]} 4... Nf6 {[%clk 0:02:57.2]} 5. Nc3 {[%clk 0:03:07.1]}
5... a6 {[%clk 0:02:56.1]} 6. Bg5 {[%clk 0:03:08.3]} 6... e6 {[%clk 0:02:54.4]}
7. f4 {[%clk 0:03:09.4]} 7... h6 {[%clk 0:02:54.6]} 8. Bh4 {[%clk 0:03:08.8]}
8... Qb6 {[%clk 0:02:54.9]} 9. Qd2 {[%clk 0:03:08.5]} 9... Qxb2 {[%clk
0:02:55.1]} 10. Rb1 {[%clk 0:03:10.1]} 10... Qa3 {[%clk 0:02:55.8]} 11. e5
{[%clk 0:03:11.8]} 11... dxe5 {[%clk 0:02:46.8]} 12. fxe5 {[%clk 0:03:13.7]}
12... Nfd7 {[%clk 0:02:47.2]} 13. Ne4 {[%clk 0:03:14.6]} 13... Nc6 {[%clk
0:01:48.9]} 14. Nxc6 {[%clk 0:03:09.7]} 14... bxc6 {[%clk 0:01:48]} 15. Be2
{[%clk 0:03:11.3]} 15... Qxa2 {[%clk 0:01:31.9]} 16. O-O {[%clk 0:03:10.7]}
16... Qd5 {[%clk 0:01:31.5]} 17. Qf4 {[%clk 0:02:55.4]} 17... Bc5+ {[%clk
0:00:24.9]} 18. Kh1 {[%clk 0:02:41.5]} 18... O-O {[%clk 0:00:25.1]} 19. Nf6+
{[%clk 0:02:35.4]} 19... Nxf6 {[%clk 0:00:22.2]} 20. Bxf6 {[%clk 0:02:28.2]}
20... Re8 {[%clk 0:00:17.5]} 21. Bxg7 {[%clk 0:02:17.1]} 1-0

[Event "*** Titled Tuesday 3|2 Blitz"]
[Site "Chess.com"]
[Date "2015.11.03"]
[Round "6"]
[White "darsen_sanzhaev"]
[Black "jcgs1030"]
[Result "1-0"]
[WhiteElo "2246"]
[BlackElo "2066"]
[TimeControl "180+2"]
[EndTime "12:14:47 PST"]
[Termination "darsen_sanzhaev won by resignation"]

1. d4 {[%clk 0:03:01.9]} 1... c5 {[%clk 0:03:01.3]} 2. d5 {[%clk 0:03:00.7]}
2... e5 {[%clk 0:03:00.5]} 3. Nc3 {[%clk 0:03:01.7]} 3... d6 {[%clk 0:03:01.8]}
4. e4 {[%clk 0:03:03.6]} 4... Nf6 {[%clk 0:03:03]} 5. Be2 {[%clk 0:03:04.2]}
5... Be7 {[%clk 0:03:04.5]} 6. Nf3 {[%clk 0:03:05.7]} 6... Nbd7 {[%clk
0:03:05.8]} 7. O-O {[%clk 0:03:06.6]} 7... Nf8 {[%clk 0:03:07.2]} 8. Re1 {[%clk
0:03:04.3]} 8... Ng6 {[%clk 0:03:08.6]} 9. Nd2 {[%clk 0:03:05.5]} 9... h5 {[%clk
0:03:07.4]} 10. Nc4 {[%clk 0:03:06.1]} 10... h4 {[%clk 0:03:02.6]} 11. Be3
{[%clk 0:02:47.8]} 11... b6 {[%clk 0:02:59.6]} 12. a4 {[%clk 0:02:47.7]} 12...
Rb8 {[%clk 0:02:59.1]} 13. Rb1 {[%clk 0:02:44.9]} 13... a6 {[%clk 0:02:57.9]}
14. b4 {[%clk 0:02:40.5]} 14... b5 {[%clk 0:02:58.8]} 15. Na5 {[%clk 0:02:40.7]}
15... Bd7 {[%clk 0:02:35.1]} 16. bxc5 {[%clk 0:02:34]} 16... Qxa5 {[%clk
0:02:34.8]} 17. c6 {[%clk 0:02:35]} 17... Bc8 {[%clk 0:02:34.2]} 18. axb5 {[%clk
0:02:28.7]} 18... axb5 {[%clk 0:02:34.2]} 19. Nxb5 {[%clk 0:02:26.6]} 19... O-O
{[%clk 0:02:31.9]} 20. f3 {[%clk 0:02:19.8]} 20... Ne8 {[%clk 0:02:20.4]} 21. c4
{[%clk 0:02:07.7]} 21... Bd8 {[%clk 0:02:16]} 22. Ra1 {[%clk 0:01:52.8]} 22...
Qb4 {[%clk 0:01:37.7]} 23. Ra4 {[%clk 0:01:43.2]} 23... Qb2 {[%clk 0:01:35.7]}
24. Bc1 {[%clk 0:01:42.8]} 24... Qb1 {[%clk 0:01:21.6]} 25. Bd3 {[%clk
0:01:42.2]} 25... Rxb5 {[%clk 0:01:20]} 26. cxb5 {[%clk 0:01:14.4]} 26... Bb6+
{[%clk 0:01:20]} 27. Kh1 {[%clk 0:01:14.8]} 1-0

[Event "*** Titled Tuesday 3|2 Blitz"]
[Site "Chess.com"]
[Date "2015.11.03"]
[Round "6"]
[White "eltenedor"]
[Black "saraswathii"]
[Result "1-0"]
[WhiteElo "1968"]
[BlackElo "1904"]
[TimeControl "180+2"]
[EndTime "12:15:48 PST"]
[Termination "eltenedor won on time"]

1. c4 {[%clk 0:03:01.9]} 1... e5 {[%clk 0:02:45.7]} 2. g3 {[%clk 0:03:01.7]}
2... Nc6 {[%clk 0:02:38.8]} 3. Bg2 {[%clk 0:03:00.6]} 3... Nf6 {[%clk 0:02:35]}
4. Nc3 {[%clk 0:03:00.9]} 4... Bc5 {[%clk 0:02:18.2]} 5. a3 {[%clk 0:02:57.9]}
5... a5 {[%clk 0:02:12]} 6. e3 {[%clk 0:02:58.4]} 6... d6 {[%clk 0:02:04.9]} 7.
Nge2 {[%clk 0:02:58.6]} 7... Bg4 {[%clk 0:01:55.5]} 8. h3 {[%clk 0:02:56.5]}
8... Bh5 {[%clk 0:01:48.6]} 9. g4 {[%clk 0:02:54.9]} 9... Bg6 {[%clk 0:01:48.2]}
10. d4 {[%clk 0:02:53]} 10... Bb6 {[%clk 0:01:40]} 11. f4 {[%clk 0:02:29.5]}
11... exf4 {[%clk 0:01:23.3]} 12. exf4 {[%clk 0:02:15.7]} 12... h6 {[%clk
0:01:21.1]} 13. f5 {[%clk 0:02:09.3]} 13... Bh7 {[%clk 0:01:17.9]} 14. Be3
{[%clk 0:02:00.9]} 14... O-O {[%clk 0:01:03.5]} 15. O-O {[%clk 0:01:46.3]} 15...
Re8 {[%clk 0:00:46.9]} 16. Bf2 {[%clk 0:01:42.3]} 16... Qd7 {[%clk 0:00:39.5]}
17. Qd2 {[%clk 0:01:02.3]} 17... Re7 {[%clk 0:00:25.7]} 18. Rad1 {[%clk
0:00:58.9]} 18... Rae8 {[%clk 0:00:12.3]} 19. Nf4 {[%clk 0:00:51.8]} 1-0

[Event "*** Titled Tuesday 3|2 Blitz"]
[Site "Chess.com"]
[Date "2015.11.03"]
[Round "6"]
[White "ZEN-22"]
[Black "Badouuu"]
[Result "1-0"]
[WhiteElo "2160"]
[BlackElo "1921"]
[TimeControl "180+2"]
[EndTime "12:15:50 PST"]
[Termination "ZEN-22 won by resignation"]

1. e3 {[%clk 0:02:54.2]} 1... c5 {[%clk 0:02:52.5]} 2. Ne2 {[%clk 0:02:56.1]}
2... d5 {[%clk 0:02:47.8]} 3. d4 {[%clk 0:02:56.7]} 3... Bf5 {[%clk 0:02:45.3]}
4. dxc5 {[%clk 0:02:54]} 4... e5 {[%clk 0:02:44.7]} 5. Ng3 {[%clk 0:02:55]} 5...
Bg6 {[%clk 0:02:42.3]} 6. e4 {[%clk 0:02:56.1]} 6... d4 {[%clk 0:02:34]} 7. f4
{[%clk 0:02:54.8]} 7... exf4 {[%clk 0:02:34.5]} 8. Bxf4 {[%clk 0:02:56.5]} 8...
Bxc5 {[%clk 0:02:35.2]} 9. Bxb8 {[%clk 0:02:50.2]} 9... Rxb8 {[%clk 0:02:35.7]}
10. Bb5+ {[%clk 0:02:51.2]} 10... Kf8 {[%clk 0:02:37.3]} 11. Bd3 {[%clk
0:02:49.4]} 11... Nf6 {[%clk 0:02:35.5]} 12. O-O {[%clk 0:02:50.8]} 12... Qb6
{[%clk 0:02:24.8]} 13. Nd2 {[%clk 0:02:51.3]} 13... Bd6 {[%clk 0:02:19.2]} 14.
Nc4 {[%clk 0:02:51.9]} 14... Qc7 {[%clk 0:02:18.7]} 15. Nxd6 {[%clk 0:02:52.8]}
15... Qxd6 {[%clk 0:02:20.6]} 16. Nf5 {[%clk 0:02:39]} 16... Bxf5 {[%clk
0:02:13.1]} 17. Rxf5 {[%clk 0:02:39.9]} 17... Nd7 {[%clk 0:02:14.2]} 18. Qf3
{[%clk 0:02:38.7]} 18... Ne5 {[%clk 0:02:13.6]} 19. Qf4 {[%clk 0:02:38.8]} 19...
Re8 {[%clk 0:02:09.3]} 20. Rf1 {[%clk 0:02:38.3]} 20... f6 {[%clk 0:02:02.8]}
21. g4 {[%clk 0:02:36.3]} 21... Ke7 {[%clk 0:02:01.9]} 22. g5 {[%clk 0:02:36.9]}
22... Rhg8 {[%clk 0:01:56.3]} 23. gxf6+ {[%clk 0:02:37.5]} 23... gxf6+ {[%clk
0:01:57.6]} 24. Kh1 {[%clk 0:02:39.2]} 24... Rg6 {[%clk 0:01:56.9]} 25. Qh4
{[%clk 0:02:35.8]} 25... h6 {[%clk 0:01:51]} 26. Be2 {[%clk 0:02:25]} 26... Rf8
{[%clk 0:01:32.7]} 27. Bh5 {[%clk 0:02:23.6]} 27... Rg5 {[%clk 0:01:32]} 28. Be2
{[%clk 0:02:21.9]} 28... Rxf5 {[%clk 0:01:29.7]} 29. Rxf5 {[%clk 0:02:22.2]}
29... Qb4 {[%clk 0:01:24.2]} 30. b3 {[%clk 0:02:20.1]} 30... Qa5 {[%clk
0:01:17.6]} 31. a4 {[%clk 0:02:19]} 31... Qc5 {[%clk 0:01:08.3]} 32. Bc4 {[%clk
0:02:18.5]} 32... Qd6 {[%clk 0:01:05.9]} 33. Bd5 {[%clk 0:02:19]} 33... Rc8
{[%clk 0:00:54.6]} 34. Qxh6 {[%clk 0:02:12.2]} 34... Rxc2 {[%clk 0:00:49.7]} 35.
Qg7+ {[%clk 0:02:13.2]} 35... Kd8 {[%clk 0:00:50.8]} 36. Rxf6 {[%clk 0:02:11.9]}
36... Rc1+ {[%clk 0:00:41.2]} 37. Kg2 {[%clk 0:02:12.9]} 37... Qd7 {[%clk
0:00:26.3]} 38. Rf8+ {[%clk 0:02:11.8]} 38... Kc7 {[%clk 0:00:27.7]} 39. Qxe5+
{[%clk 0:02:12.6]} 39... Kb6 {[%clk 0:00:29.1]} 40. Qxd4+ {[%clk 0:02:13.5]}
40... Ka5 {[%clk 0:00:24.6]} 41. b4+ {[%clk 0:02:09.6]} 41... Kxa4 {[%clk
0:00:22.9]} 42. Bb3+ {[%clk 0:02:10.4]} 1-0

[Event "*** Titled Tuesday 3|2 Blitz"]
[Site "Chess.com"]
[Date "2015.11.03"]
[Round "6"]
[White "FrankieJay"]
[Black "sorito"]
[Result "0-1"]
[WhiteElo "2159"]
[BlackElo "2106"]
[TimeControl "180+2"]
[EndTime "12:16:11 PST"]
[Termination "sorito won by checkmate"]

1. e4 {[%clk 0:03:01.9]} 1... d6 {[%clk 0:03:00.2]} 2. d4 {[%clk 0:03:02.7]}
2... Nf6 {[%clk 0:03:00.8]} 3. Nc3 {[%clk 0:03:04.2]} 3... c6 {[%clk 0:03:01]}
4. Be3 {[%clk 0:03:01.8]} 4... Qb6 {[%clk 0:02:48.3]} 5. Rb1 {[%clk 0:02:46.5]}
5... Ng4 {[%clk 0:02:47.4]} 6. Bg5 {[%clk 0:02:41.4]} 6... e5 {[%clk 0:02:45.3]}
7. h3 {[%clk 0:02:09.1]} 7... exd4 {[%clk 0:02:36.7]} 8. hxg4 {[%clk 0:01:45.2]}
8... dxc3 {[%clk 0:02:37.4]} 9. bxc3 {[%clk 0:01:45.8]} 9... Qa5 {[%clk
0:02:35.6]} 10. Qd2 {[%clk 0:01:40.4]} 10... Nd7 {[%clk 0:02:36.6]} 11. Bf4
{[%clk 0:01:20.5]} 11... Ne5 {[%clk 0:02:34]} 12. g5 {[%clk 0:01:18.4]} 12...
Qxa2 {[%clk 0:02:32.2]} 13. Rd1 {[%clk 0:01:13.7]} 13... Be6 {[%clk 0:02:28.3]}
14. Nf3 {[%clk 0:01:09.3]} 14... Qa5 {[%clk 0:02:07.2]} 15. Nd4 {[%clk
0:01:01.4]} 15... Be7 {[%clk 0:01:57.6]} 16. Nxe6 {[%clk 0:00:49.7]} 16... fxe6
{[%clk 0:01:58.3]} 17. c4 {[%clk 0:00:50.8]} 17... Qxd2+ {[%clk 0:01:56.5]} 18.
Rxd2 {[%clk 0:00:52.7]} 18... O-O {[%clk 0:01:45.3]} 19. Bxe5 {[%clk 0:00:46.3]}
19... dxe5 {[%clk 0:01:47.2]} 20. Rd7 {[%clk 0:00:47.1]} 20... Bb4+ {[%clk
0:01:44.6]} 21. Ke2 {[%clk 0:00:40.7]} 21... Rad8 {[%clk 0:01:41.7]} 22. Rxb7
{[%clk 0:00:31.5]} 22... a5 {[%clk 0:01:32.7]} 23. c3 {[%clk 0:00:17.6]} 23...
Bxc3 {[%clk 0:01:30.1]} 24. Rb3 {[%clk 0:00:19.1]} 24... Bb4 {[%clk 0:01:28.2]}
25. Rf3 {[%clk 0:00:13.6]} 25... Rd2+ {[%clk 0:01:27.9]} 26. Ke3 {[%clk
0:00:14.8]} 26... Rfd8 {[%clk 0:01:22.7]} 27. Rfh3 {[%clk 0:00:11.7]} 27... Bc5+
{[%clk 0:01:23.8]} 28. Kf3 {[%clk 0:00:13.1]} 28... Rxf2+ {[%clk 0:01:09.7]} 29.
Kg4 {[%clk 0:00:14.3]} 29... Rf4+ {[%clk 0:01:09.1]} 30. Kh5 {[%clk 0:00:11]}
30... g6+ {[%clk 0:01:10]} 31. Kh6 {[%clk 0:00:11.8]} 31... Bf8# {[%clk
0:01:04.5]} 0-1